bitfinex-derivatives/quotes_BTCF0:USTF0_20250422
["timestamp","ask_amount","ask_price","bid_price","bid_amount"]
[1745323861119,0.46408,88754.0,88753.0,0.3649]
[1745323861513,0.46408,88754.0,88753.0,0.4775812]
[1745323862325,0.46308,88754.0,88753.0,0.4775812]
[1745323862517,0.46408,88754.0,88753.0,0.4775812]
[1745323863921,0.46308,88754.0,88753.0,0.4775812]
[1745323864218,0.46208,88754.0,88753.0,0.4705812]
[1745323864621,0.46208,88754.0,88753.0,0.3579]
[1745323865122,0.85328,88754.0,88753.0,0.3579]
[1745323866120,0.85328,88754.0,88753.0,0.4705812]
[1745323867115,0.85428,88754.0,88753.0,0.4705812]
[1745323867719,0.85528,88754.0,88753.0,0.4705812]
[1745323870519,0.85428,88754.0,88753.0,0.4705812]
[1745323870720,0.85528,88754.0,88753.0,0.4705812]
[1745323871116,0.85428,88754.0,88753.0,0.4705812]
[1745323871312,0.85528,88754.0,88753.0,0.4705812]
[1745323871821,0.85428,88754.0,88753.0,0.4635812]
[1745323872022,0.85428,88754.0,88753.0,0.3509]
[1745323873022,0.85328,88754.0,88753.0,0.3509]
[1745323873423,0.85328,88754.0,88753.0,0.4635812]
[1745323874319,0.66098,88754.0,88753.0,0.4635812]
[1745323876521,0.46208,88754.0,88753.0,0.4635812]
[1745323876723,0.46223097,88754.0,88753.0,0.4635812]
[1745323877225,0.46323097,88754.0,88753.0,0.4635812]
[1745323877725,0.46323097,88754.0,88753.0,0.4645812]
[1745323877923,0.46223097,88754.0,88753.0,0.4645812]
[1745323878124,0.46223097,88754.0,88753.0,0.4635812]
[1745323878919,0.46223097,88754.0,88753.0,0.8243812]
[1745323879522,0.46223097,88754.0,88753.0,0.8173812]
[1745323879918,0.46323097,88754.0,88753.0,0.8173812]
[1745323882323,0.46223097,88754.0,88753.0,0.8173812]
[1745323882629,0.46323097,88754.0,88753.0,0.8173812]
[1745323885837,0.46215097,88754.0,88753.0,0.8173812]
[1745323886033,0.46223097,88754.0,88753.0,0.8173812]
[1745323886830,0.46215097,88754.0,88753.0,0.8173812]
[1745323887033,0.46223097,88754.0,88753.0,0.8173812]
[1745323887925,0.46223097,88754.0,88753.0,0.8193812]
[1745323888338,0.46223097,88754.0,88753.0,0.8173812]
[1745323888541,0.46223097,88754.0,88753.0,0.8213812]
[1745323888935,0.46223097,88754.0,88753.0,0.8203812]
[1745323889140,0.46223097,88754.0,88753.0,0.8183812]
[1745323889340,0.46223097,88754.0,88753.0,0.8213812]
[1745323890040,0.46223097,88754.0,88753.0,0.8193812]
[1745323891638,0.46223097,88754.0,88753.0,0.8183812]
[1745323891838,0.46223097,88754.0,88753.0,0.8193812]
[1745323892240,0.46223097,88754.0,88753.0,0.8123812]
[1745323893943,0.46215097,88754.0,88753.0,0.8123812]
[1745323894242,0.46223097,88754.0,88753.0,0.8123812]
[1745323894635,0.46223097,88754.0,88753.0,0.8103812]
[1745323894828,0.46223097,88754.0,88753.0,0.8133812]
[1745323895638,0.46223097,88754.0,88753.0,0.8143812]
[1745323896241,0.46223097,88754.0,88753.0,0.8123812]
[1745323896436,0.46223097,88754.0,88753.0,0.8143812]
[1745323897739,0.46223097,88754.0,88753.0,0.8123812]
[1745323897941,0.46223097,88754.0,88753.0,0.8143812]
[1745323899561,0.46223097,88754.0,88753.0,0.8123812]
[1745323899743,0.46223097,88754.0,88753.0,0.8143812]
[1745323900053,0.46223097,88754.0,88753.0,0.8073812]
[1745323900840,0.46215097,88754.0,88753.0,0.8073812]
[1745323901044,0.46223097,88754.0,88753.0,0.8053812]
[1745323901246,0.46223097,88754.0,88753.0,0.8073812]
[1745323902150,0.46223097,88754.0,88753.0,0.8043812]
[1745323902457,0.46223097,88754.0,88753.0,0.8073812]
[1745323903059,0.46223097,88754.0,88753.0,0.8093812]
[1745323904753,0.46223097,88754.0,88753.0,0.8063812]
[1745323904943,0.46223097,88754.0,88753.0,0.8093812]
[1745323906146,0.46223097,88754.0,88753.0,0.8083812]
[1745323907341,0.46223097,88754.0,88753.0,0.8063812]
[1745323907542,0.46223097,88754.0,88753.0,0.8093812]
[1745323908446,0.46223097,88754.0,88753.0,0.8063812]
[1745323908643,0.46223097,88754.0,88753.0,0.8093812]
[1745323912146,0.27023097,88754.0,88753.0,0.8093812]
[1745323914140,0.46223097,88754.0,88753.0,0.8093812]
[1745323915349,0.46223097,88754.0,88753.0,0.8063812]
[1745323915552,0.46223097,88754.0,88753.0,0.8093812]
[1745323917954,0.46215097,88754.0,88753.0,0.8093812]
[1745323918751,0.46223097,88754.0,88753.0,0.8093812]
[1745323923257,0.57491097,88754.0,88753.0,0.6133812]
[1745323923457,0.46223097,88754.0,88753.0,0.6133812]
[1745323923659,1.03293097,88754.0,88753.0,0.6133812]
[1745323924358,1.03293097,88754.0,88753.0,0.6103812]
[1745323924547,0.65973097,88754.0,88753.0,0.7948812]
[1745323924750,0.46223097,88754.0,88753.0,0.7958812]
[1745323924956,0.46215097,88754.0,88753.0,0.7958812]
[1745323925261,0.27023097,88754.0,88753.0,0.7938812]
[1745323926058,0.27015097,88754.0,88753.0,0.7938812]
[1745323926248,0.46223097,88754.0,88753.0,0.7938812]
[1745323926958,0.46223097,88754.0,88753.0,0.7948812]
[1745323927161,0.46223097,88754.0,88753.0,0.7968812]
[1745323928056,0.46223097,88754.0,88753.0,0.7978812]
[1745323928759,0.46223097,88754.0,88753.0,0.7948812]
[1745323928956,0.46223097,88754.0,88753.0,0.7978812]
[1745323930664,0.46223097,88754.0,88753.0,0.7948812]
[1745323930856,0.46223097,88754.0,88753.0,0.7978812]
[1745323931258,0.46223097,88754.0,88753.0,0.7958812]
[1745323931458,0.46223097,88754.0,88753.0,0.7978812]
[1745323931850,0.46223097,88754.0,88753.0,0.7938812]
[1745323932057,0.46223097,88754.0,88753.0,0.4350812]
[1745323932251,0.46223097,88754.0,88753.0,1.1566812]
[1745323933355,0.46223097,88754.0,88753.0,1.1546812]
[1745323933550,0.46223097,88754.0,88753.0,1.1566812]
[1745323933957,0.46223097,88754.0,88753.0,1.1546812]
[1745323934262,0.46223097,88754.0,88753.0,1.1576812]
[1745323934961,0.46223097,88754.0,88753.0,0.9731812]
[1745323935153,0.46223097,88754.0,88753.0,1.1589812]
[1745323936863,0.46223097,88754.0,88753.0,1.1569812]
[1745323937060,0.46223097,88754.0,88753.0,1.1579812]
[1745323937259,0.46223097,88754.0,88753.0,1.1559812]
[1745323937459,0.46223097,88754.0,88753.0,1.1549812]
[1745323937663,0.46223097,88754.0,88753.0,1.1499812]
[1745323937861,0.46223097,88754.0,88753.0,1.1489812]
[1745323938051,0.46223097,88754.0,88753.0,1.1509812]
[1745323939762,0.46223097,88754.0,88753.0,1.1479812]
[1745323939962,0.46223097,88754.0,88753.0,1.1499812]
[1745323940365,0.46223097,88754.0,88753.0,1.1519812]
[1745323940564,0.46223097,88754.0,88753.0,1.1499812]
[1745323940763,0.46223097,88754.0,88753.0,1.1529812]
[1745323940967,0.46223097,88754.0,88753.0,1.1519812]
[1745323942860,0.46223097,88754.0,88753.0,1.1489812]
[1745323943065,0.46223097,88754.0,88753.0,1.1509812]
[1745323943668,0.46223097,88754.0,88753.0,0.4293812]
[1745323943863,0.46223097,88754.0,88753.0,0.7901812]
[1745323945374,0.46223097,88754.0,88753.0,0.7831812]
[1745323946163,0.46223097,88754.0,88753.0,0.7811812]
[1745323946364,0.46223097,88754.0,88753.0,0.7831812]
[1745323947469,0.46215097,88754.0,88753.0,0.7831812]
[1745323947776,0.46223097,88754.0,88753.0,0.7841812]
[1745323948979,0.46223097,88754.0,88753.0,0.7831812]
[1745323949579,0.46223097,88754.0,88753.0,0.7851812]
[1745323950077,0.46223097,88754.0,88753.0,0.7811812]
[1745323950278,0.46223097,88754.0,88753.0,0.7831812]
[1745323950773,0.46223097,88754.0,88753.0,0.7821812]
[1745323950980,0.46223097,88754.0,88753.0,0.7841812]
[1745323951182,0.46208,88754.0,88753.0,0.7841812]
[1745323952379,0.46208,88754.0,88753.0,0.7831812]
[1745323953178,0.46208,88754.0,88753.0,0.7761812]
[1745323953379,0.46208,88754.0,88753.0,0.7741812]
[1745323953581,0.46223097,88754.0,88753.0,0.7751812]
[1745323953882,0.46223097,88754.0,88753.0,0.7781812]
[1745323954379,0.46223097,88754.0,88753.0,0.7751812]
[1745323954578,0.46223097,88754.0,88753.0,0.7771812]
[1745323957167,0.27023097,88754.0,88753.0,0.7771812]
[1745323958170,0.46223097,88754.0,88753.0,0.7771812]
[1745323959175,0.46223097,88754.0,88753.0,0.8496612]
[1745323960079,0.46223097,88754.0,88753.0,0.8506612]
[1745323962177,0.27023097,88754.0,88753.0,0.8516612]
[1745323962375,0.27015097,88754.0,88753.0,0.8516612]
[1745323962575,0.27023097,88754.0,88753.0,0.8516612]
[1745323962778,0.27023097,88754.0,88753.0,0.8526612]
[1745323963177,0.27023097,88754.0,88753.0,0.8536612]
[1745323964185,0.46223097,88754.0,88753.0,0.8536612]
[1745323966185,0.27023097,88754.0,88753.0,0.8536612]
[1745323967686,0.27023097,88754.0,88753.0,1.2650612]
[1745323968184,0.46223097,88754.0,88753.0,1.2650612]
[1745323971078,0.27023097,88754.0,88753.0,1.2650612]
[1745323972079,0.46223097,88754.0,88753.0,1.2650612]
[1745323974988,0.46223097,88754.0,88753.0,1.2650212]
[1745323988387,0.46215097,88754.0,88753.0,1.2650212]
[1745323988593,0.46223097,88754.0,88753.0,1.2650212]
[1745323995792,0.46223097,88754.0,88753.0,1.1019212]
[1745323995994,0.46223097,88754.0,88753.0,1.8235212]
[1745324001698,0.46223097,88754.0,88753.0,1.8234812]
[1745324009710,0.46223097,88754.0,88753.0,1.3675812]
[1745324009912,0.57489967,88754.0,88753.0,1.2546812]
[1745324010509,1.13979967,88754.0,88753.0,1.2546812]
[1745324011216,1.13979967,88754.0,88732.0,0.36096907]
[1745324011217,1.38980297,88754.0,88732.0,0.36096907]
[1745324011513,0.0563362,88751.0,88749.0,0.1690113]
[1745324011716,0.2863362,88751.0,88749.0,0.1690113]
[1745324011904,0.5363362,88751.0,88749.0,0.1690113]
[1745324012124,0.7283362,88751.0,88749.0,0.1690113]
[1745324012308,0.7283362,88751.0,88750.0,0.1126738]
[1745324013319,0.4783362,88751.0,88750.0,0.1126738]
[1745324014621,0.4803362,88751.0,88750.0,0.1126738]
[1745324016119,0.4803362,88751.0,88744.0,0.3608]
[1745324016422,0.4793362,88751.0,88744.0,0.3608]
[1745324017218,0.4793362,88751.0,88734.0,0.1126933]
[1745324017219,0.1126943,88735.0,88734.0,0.1126933]
[1745324017406,0.0563457,88737.0,88736.0,0.1126915]
[1745324017610,0.3363457,88737.0,88736.0,0.1126915]
[1745324018127,0.5283457,88737.0,88736.0,0.1126915]
[1745324019521,0.472,88737.0,88736.0,0.1126915]
[1745324019912,0.472,88737.0,88733.0,0.1987]
[1745324020118,0.5283454,88737.0,88736.0,0.1987]
[1745324020416,0.5293454,88737.0,88736.0,0.3103915]
[1745324020808,0.5303454,88737.0,88736.0,0.3103915]
[1745324021825,0.6643454,88737.0,88736.0,0.3103915]
[1745324023408,0.608,88737.0,88736.0,0.3103915]
[1745324023609,0.474,88737.0,88736.0,0.6711915]
[1745324023812,0.474,88737.0,88736.0,1.3402515]
[1745324024014,0.47408,88737.0,88736.0,1.3402515]
[1745324024722,0.5867703,88737.0,88736.0,0.5515]
[1745324025417,0.7288703,88737.0,88736.0,0.5515]
[1745324025619,0.7278703,88737.0,88736.0,0.5525]
[1745324025823,0.7278703,88737.0,88736.0,0.6651915]
[1745324026119,0.7278703,88737.0,88736.0,0.5525]
[1745324026320,0.7278703,88737.0,88736.0,0.6651915]
[1745324026818,0.7268703,88737.0,88736.0,0.6651915]
[1745324027021,0.7268703,88737.0,88736.0,0.6661915]
[1745324027411,0.7268703,88737.0,88736.0,0.6651915]
[1745324027617,0.7268703,88737.0,88736.0,0.6671915]
[1745324028426,0.9217703,88737.0,88736.0,0.8645915]
[1745324028920,0.92189813,88737.0,88736.0,0.8645915]
[1745324029625,0.92189813,88737.0,88736.0,0.7519]
[1745324029825,0.92189813,88737.0,88736.0,0.8645915]
[1745324030323,1.09009813,88737.0,88736.0,0.8645915]
[1745324031624,1.09009813,88737.0,88736.0,0.5037915]
[1745324031827,1.09009813,88737.0,88736.0,0.8645915]
[1745324032320,1.09009813,88737.0,88736.0,0.7449]
[1745324032627,1.09009813,88737.0,88736.0,0.8575915]
[1745324034724,0.97740783,88737.0,88736.0,0.8575915]
[1745324034929,0.47220783,88737.0,88736.0,1.5336515]
[1745324035121,0.00026573,88755.0,88745.0,0.1126801]
[1745324035314,0.06014581,88746.0,88745.0,1.1495401]
[1745324035518,0.06014581,88746.0,88745.0,1.7090401]
[1745324035918,0.06,88746.0,88745.0,1.7090401]
[1745324036116,0.06008,88746.0,88745.0,1.9010401]
[1745324036726,0.06108,88746.0,88745.0,1.9010401]
[1745324037026,0.06208,88746.0,88745.0,1.9010401]
[1745324037231,0.25408,88746.0,88745.0,1.7090401]
[1745324037626,0.25308,88746.0,88745.0,1.7130401]
[1745324037828,0.25208,88746.0,88745.0,1.7170401]
[1745324041636,0.25208,88746.0,88745.0,1.5327401]
[1745324051949,0.25208,88746.0,88745.0,1.7320401]
[1745324057060,0.25208,88746.0,88745.0,2.0928401]
[1745324059855,0.25208,88746.0,88745.0,1.3712401]
[1745324060055,0.25208,88746.0,88745.0,2.0928401]
[1745324060258,0.25208,88746.0,88745.0,2.0888401]
[1745324060456,0.25208,88746.0,88745.0,2.0928401]
[1745324065364,0.252,88746.0,88745.0,2.0928401]
[1745324065562,0.25208,88746.0,88745.0,2.0928401]
[1745324068553,0.25208,88746.0,88745.0,2.0878401]
[1745324068865,0.25208,88746.0,88745.0,2.0908401]
[1745324069167,0.25208,88746.0,88745.0,2.0918401]
[1745324069566,0.25208,88746.0,88745.0,2.0878401]
[1745324069766,0.25208,88746.0,88745.0,2.0908401]
[1745324070164,0.25208,88746.0,88745.0,2.0888401]
[1745324070358,0.25208,88746.0,88745.0,2.0928401]
[1745324071759,0.25208,88746.0,88745.0,1.8988401]
[1745324072167,0.25208,88746.0,88745.0,1.8908401]
[1745324072370,0.25208,88746.0,88745.0,1.8958401]
[1745324073170,0.25208,88746.0,88745.0,1.8948401]
[1745324074975,0.25208,88746.0,88745.0,1.8958401]
[1745324076368,0.25208,88746.0,88745.0,1.78016]
[1745324076671,1.05288,88746.0,88729.0,0.1126989]
[1745324076975,0.1126998,88730.0,88729.0,0.1126992]
[1745324077178,0.5746998,88730.0,88729.0,0.1126992]
[1745324077475,1.0771998,88730.0,88729.0,0.1126992]
[1745324078568,1.0771998,88730.0,88729.0,0.1156992]
[1745324079468,1.0771998,88730.0,88729.0,0.1176992]
[1745324079977,0.9645,88730.0,88729.0,0.1176992]
[1745324080179,0.6111,88730.0,88729.0,0.4815992]
[1745324080373,0.462,88730.0,88729.0,1.3397592]
[1745324080578,0.46208,88730.0,88729.0,1.3397592]
[1745324081075,0.46208,88730.0,88729.0,1.3367592]
[1745324081374,0.64468,88730.0,88729.0,1.3367592]
[1745324081772,0.7563792,88730.0,88729.0,1.3377592]
[1745324081965,0.64368,88730.0,88729.0,1.3377592]
[1745324082165,0.64568,88730.0,88729.0,1.3347592]
[1745324082365,0.64568,88730.0,88729.0,1.3357592]
[1745324082769,0.64568,88730.0,88729.0,1.3347592]
[1745324083076,0.64368,88730.0,88729.0,1.3357592]
[1745324083389,0.64368,88730.0,88729.0,1.1536592]
[1745324083581,0.7563792,88730.0,88729.0,1.1536592]
[1745324084673,0.7563792,88730.0,88729.0,0.1852]
[1745324084973,0.7583792,88730.0,88729.0,0.1137004]
[1745324085179,0.7583792,88730.0,88729.0,0.1127004]
[1745324085473,0.9264792,88730.0,88729.0,0.1127004]
[1745324085871,0.9264792,88730.0,88729.0,0.4961004]
[1745324086074,0.9274792,88730.0,88729.0,0.4961004]
[1745324087076,0.7593792,88730.0,88729.0,0.4961004]
[1745324087577,0.7583792,88730.0,88729.0,0.4961004]
[1745324087779,0.7593792,88730.0,88729.0,0.4961004]
[1745324088082,0.7593792,88730.0,88729.0,0.4891004]
[1745324088479,0.7583792,88730.0,88729.0,0.4891004]
[1745324091277,0.7573792,88730.0,88729.0,0.4891004]
[1745324091673,0.7583792,88730.0,88729.0,0.3834]
[1745324092074,0.7583792,88730.0,88729.0,0.4961004]
[1745324094188,0.7573792,88730.0,88729.0,0.4961004]
[1745324094487,0.7583792,88730.0,88729.0,0.4961004]
[1745324094887,0.7593792,88730.0,88729.0,0.4961004]
[1745324095587,0.7583792,88730.0,88729.0,0.4891004]
[1745324095881,0.7573792,88730.0,88729.0,0.4891004]
[1745324096090,0.7583792,88730.0,88729.0,0.4891004]
[1745324096289,0.7573792,88730.0,88729.0,0.4891004]
[1745324096584,0.7583792,88730.0,88729.0,0.3764]
[1745324096979,0.7583792,88730.0,88729.0,0.4891004]
[1745324100292,0.5767792,88730.0,88729.0,0.4891004]
[1745324100587,0.46408,88730.0,88729.0,0.4891004]
[1745324102287,0.46308,88730.0,88729.0,0.4891004]
[1745324103484,0.46308,88730.0,88729.0,1.1581604]
[1745324103886,0.462,88730.0,88729.0,1.1581604]
[1745324104191,0.46308,88730.0,88729.0,1.1581604]
[1745324104691,0.46208,88730.0,88729.0,1.1581604]
[1745324106391,0.462,88730.0,88729.0,1.1581604]
[1745324106588,0.46208,88730.0,88729.0,1.1581604]
[1745324106887,0.5747792,88730.0,88729.0,0.3694]
[1745324107086,0.7560792,88730.0,88729.0,0.3694]
[1745324107688,0.64338,88730.0,88729.0,0.4821004]
[1745324108090,0.64538,88730.0,88729.0,0.4821004]
[1745324108388,0.64638,88730.0,88729.0,0.4821004]
[1745324108790,0.64338,88730.0,88729.0,0.4821004]
[1745324108991,0.46308,88730.0,88729.0,0.4821004]
[1745324110290,0.46208,88730.0,88729.0,0.4821004]
[1745324110494,0.66138,88730.0,88729.0,0.4821004]
[1745324111090,0.66138,88730.0,88729.0,0.4751004]
[1745324112097,0.7740792,88730.0,88729.0,0.4751004]
[1745324112394,0.66138,88730.0,88729.0,0.4751004]
[1745324112692,0.46308,88730.0,88729.0,0.4751004]
[1745324114684,0.46308,88730.0,88729.0,1.1511604]
[1745324114890,0.46208,88730.0,88729.0,1.1511604]
[1745324117701,0.46308,88730.0,88729.0,1.1511604]
[1745324118804,0.46308,88730.0,88729.0,1.1441604]
[1745324120504,0.46208,88730.0,88729.0,1.1441604]
[1745324120996,0.46208,88730.0,88729.0,1.3330604]
[1745324121997,0.5747792,88730.0,88729.0,1.3330604]
[1745324123103,0.46208,88730.0,88729.0,1.3330604]
[1745324123793,0.46308,88730.0,88729.0,1.3330604]
[1745324124203,0.46408,88730.0,88729.0,1.3330604]
[1745324124402,0.46308,88730.0,88729.0,1.3330604]
[1745324126595,0.46308,88730.0,88729.0,1.3260604]
[1745324127398,0.5757792,88730.0,88729.0,0.87146]
[1745324127597,0.5757792,88730.0,88729.0,0.9841604]
[1745324127804,0.9310792,88730.0,88729.0,0.9841604]
[1745324128000,0.9310792,88730.0,88729.0,0.87146]
[1745324128209,0.9300792,88730.0,88729.0,0.1954]
[1745324128510,0.0563521,88726.0,88724.0,0.00169076]
[1745324128712,0.2863521,88726.0,88724.0,0.00169076]
[1745324129013,0.2863521,88726.0,88722.0,0.00026]
[1745324129312,0.4783521,88726.0,88722.0,0.00026]
[1745324131112,0.10395991,88723.0,88722.0,0.00026]
[1745324131299,0.33395991,88723.0,88722.0,0.00026]
[1745324132200,0.52595991,88723.0,88722.0,0.00026]
[1745324132407,0.53195991,88723.0,88722.0,0.00026]
[1745324134214,0.1127093,88722.0,88721.0,0.00016907]
[1745324134418,0.1127195,88714.0,88713.0,0.36212907]
[1745324134605,0.4349195,88714.0,88713.0,0.36212907]
[1745324135218,0.6269195,88714.0,88713.0,0.36212907]
[1745324136114,0.6269195,88714.0,88713.0,0.29925193]
[1745324137014,0.63522889,88714.0,88713.0,0.29925193]
[1745324138013,0.63522889,88714.0,88713.0,0.25725193]
[1745324138216,0.63522889,88714.0,88713.0,0.61805193]
[1745324138416,0.63522889,88714.0,88713.0,0.61286193]
[1745324138615,0.38522889,88714.0,88713.0,0.61286193]
[1745324138914,0.38522889,88714.0,88713.0,0.60942193]
[1745324141112,0.27250939,88714.0,88713.0,1.39820263]
[1745324141313,0.27250939,88714.0,88713.0,1.28548193]
[1745324142019,0.38522889,88714.0,88713.0,1.27848193]
[1745324142213,0.19322889,88714.0,88713.0,1.27848193]
[1745324142518,0.12102889,88714.0,88713.0,1.27848193]
[1745324143516,0.00830939,88714.0,88713.0,1.27848193]
[1745324143719,0.0563573,88718.0,88713.0,1.27848193]
[1745324144016,0.0563573,88718.0,88714.0,0.67606]
[1745324144206,0.0563573,88718.0,88714.0,0.86686]
[1745324144407,0.0563586,88716.0,88715.0,0.87216]
[1745324145208,0.2483586,88716.0,88715.0,1.06876]
[1745324145513,0.4370586,88716.0,88715.0,1.06876]
[1745324145716,0.4380586,88716.0,88715.0,1.06876]
[1745324146817,0.4390586,88716.0,88715.0,1.06876]
[1745324147619,0.2503586,88716.0,88715.0,1.06876]
[1745324149021,0.2493586,88716.0,88715.0,1.06876]
[1745324149219,0.2503586,88716.0,88715.0,1.06876]
[1745324151019,0.2503586,88716.0,88715.0,1.06176]
[1745324153423,0.2503586,88716.0,88715.0,0.3857]
[1745324153725,0.4456586,88716.0,88715.0,0.3857]
[1745324154025,0.6409586,88716.0,88715.0,0.38578]
[1745324154927,0.3067169,88716.0,88715.0,0.38578]
[1745324155222,0.1147169,88716.0,88715.0,0.38578]
[1745324158718,0.1147169,88716.0,88715.0,0.37878]
[1745324158918,0.1137169,88716.0,88715.0,0.37878]
[1745324159225,0.19538,88723.0,88715.0,0.37878]
[1745324159226,0.07216,88718.0,88715.0,0.37878]
[1745324159824,0.145628,88733.0,88717.0,0.3608]
[1745324160018,0.145628,88733.0,88732.0,0.3608]
[1745324160217,0.1848553,88733.0,88732.0,0.3598]
[1745324160619,0.1849353,88733.0,88732.0,0.3598]
[1745324160932,0.1848553,88733.0,88732.0,0.3588]
[1745324161119,0.3768553,88733.0,88732.0,0.3588]
[1745324161319,0.3868553,88733.0,88732.0,0.3598]
[1745324161824,0.3869353,88733.0,88732.0,0.3598]
[1745324162016,0.0563501,88730.0,88726.0,0.7385]
[1745324162222,0.112703,88727.0,88726.0,0.7385]
[1745324162426,0.112703,88727.0,88726.0,0.1964]
[1745324162620,0.473503,88727.0,88726.0,0.16331]
[1745324162815,0.112703,88727.0,88726.0,0.1345]
[1745324163031,0.07216,88727.0,88726.0,0.13442]
[1745324163226,0.376863,88727.0,88726.0,0.07771]
[1745324163818,0.376863,88727.0,88726.0,0.07763]
[1745324164018,0.1127055,88725.0,88724.0,0.00016907]
[1745324165333,0.3097055,88725.0,88724.0,0.00016907]
[1745324165829,0.1848655,88725.0,88724.0,0.00016907]
[1745324166433,0.1127119,88720.0,88719.0,0.18556907]
[1745324167130,0.3047119,88720.0,88719.0,0.18556907]
[1745324167522,0.3047119,88720.0,88719.0,0.18756907]
[1745324167721,0.3047119,88720.0,88719.0,0.19056907]
[1745324168323,0.1848719,88720.0,88719.0,0.19056907]
[1745324169129,0.3768719,88720.0,88719.0,0.19056907]
[1745324170728,0.1848719,88720.0,88719.0,0.19056907]
[1745324171933,0.1848719,88720.0,88719.0,0.37206907]
[1745324173139,0.07216,88724.0,88719.0,1.24012907]
[1745324173334,0.1127095,88722.0,88720.0,0.67606]
[1745324173834,0.1127095,88722.0,88721.0,1.04256]
[1745324174030,0.1127095,88722.0,88721.0,0.3665]
[1745324174236,0.1127095,88722.0,88721.0,1.03556]
[1745324174625,0.1127081,88723.0,88721.0,1.03556]
[1745324174826,0.1127081,88723.0,88722.0,0.67606]
[1745324175321,0.1127093,88722.0,88721.0,0.185]
[1745324175527,0.1127093,88722.0,88721.0,0.188]
[1745324175724,0.1127093,88722.0,88721.0,0.15939041]
[1745324175923,0.1127093,88722.0,88721.0,0.08665041]
[1745324176731,0.1127093,88722.0,88721.0,0.07100041]
[1745324176933,0.1196093,88722.0,88721.0,0.07100041]
[1745324177331,0.1196093,88722.0,88721.0,0.07092041]
[1745324177526,0.1196093,88722.0,88721.0,0.07342213]
[1745324177725,0.1197693,88722.0,88721.0,0.07042213]
[1745324178535,0.1197693,88722.0,88721.0,0.07242213]
[1745324178724,0.1197693,88722.0,88721.0,0.06522213]
[1745324179036,0.1197693,88722.0,88721.0,0.00750172]
[1745324179540,0.1197693,88722.0,88721.0,0.00758172]
[1745324180439,0.1508693,88722.0,88721.0,0.00750172]
[1745324180634,0.1127119,88720.0,88719.0,0.18384914]
[1745324181033,0.1196119,88720.0,88719.0,0.18384914]
[1745324181234,0.1196119,88720.0,88719.0,0.15320914]
[1745324181723,0.1127131,88719.0,88718.0,0.13278914]
[1745324181924,0.1127131,88719.0,88718.0,0.01762502]
[1745324182124,0.1127195,88714.0,88713.0,0.000108]
[1745324182331,0.1848395,88714.0,88713.0,0.000108]
[1745324182526,0.1848395,88714.0,88712.0,0.30803412]
[1745324182527,0.1127207,88713.0,88712.0,0.30803412]
[1745324183027,0.1196207,88713.0,88712.0,0.30803412]
[1745324183728,0.1127207,88713.0,88712.0,0.30803412]
[1745324184037,0.1127207,88713.0,88712.0,0.31103412]
[1745324184733,0.1127207,88713.0,88712.0,0.31403412]
[1745324184934,0.1127207,88713.0,88712.0,0.49593412]
[1745324185137,0.1127207,88713.0,88712.0,0.69053412]
[1745324185329,0.3045207,88713.0,88712.0,0.69061412]
[1745324185530,0.1127207,88713.0,88712.0,0.69061412]
[1745324185732,0.00848918,88714.0,88713.0,0.1127207]
[1745324185934,8e-05,88720.0,88713.0,0.9143202]
[1745324186130,0.07222801,88724.0,88718.0,1.03686]
[1745324186329,0.07212,88724.0,88723.0,0.3608]
[1745324186539,0.1848268,88724.0,88723.0,0.3608]
[1745324186742,0.1849068,88724.0,88723.0,1.03686]
[1745324188043,0.0722,88724.0,88723.0,1.03686]
[1745324188739,0.0722,88724.0,88723.0,1.149568]
[1745324188935,0.07212,88731.0,88723.0,1.03686]
[1745324189130,0.07212,88731.0,88727.0,0.112703]
[1745324189548,0.07212,88731.0,88727.0,0.781763]
[1745324190127,0.0021124,88728.0,88727.0,0.973763]
[1745324190332,0.0021124,88728.0,88727.0,0.86806]
[1745324191239,0.0021124,88728.0,88727.0,0.67606]
[1745324191638,0.0001124,88728.0,88727.0,0.67606]
[1745324191945,0.0021124,88728.0,88727.0,0.67706]
[1745324192641,0.0001124,88728.0,88727.0,0.67806]
[1745324194643,0.0001124,88728.0,88727.0,0.67706]
[1745324197345,0.0001124,88728.0,88727.0,0.67006]
[1745324198152,0.0001124,88728.0,88727.0,1.39166]
[1745324198354,0.0001124,88728.0,88727.0,1.39266]
[1745324199051,0.0001124,88728.0,88727.0,1.39166]
[1745324199955,0.0001124,88728.0,88727.0,1.39266]
[1745324200464,0.0001124,88728.0,88727.0,1.39166]
[1745324203848,0.0011124,88728.0,88727.0,1.39166]
[1745324204353,0.0021124,88728.0,88727.0,1.39166]
[1745324205148,0.0011124,88728.0,88727.0,1.38466]
[1745324206354,0.0001124,88728.0,88727.0,1.38466]
[1745324208259,0.0001124,88728.0,88727.0,1.56836]
[1745324209270,0.0001124,88728.0,88727.0,1.56936]
[1745324209867,0.0001124,88728.0,88727.0,1.682063]
[1745324210257,0.0001924,88728.0,88727.0,1.874063]
[1745324210662,0.0001924,88728.0,88727.0,1.873063]
[1745324211163,0.00014581,88743.0,88727.0,2.01036]
[1745324211466,0.07208,88745.0,88742.0,1.38466]
[1745324211762,0.07208,88745.0,88743.0,0.3834]
[1745324211958,0.07208,88745.0,88743.0,1.340842]
[1745324212264,0.07216,88745.0,88744.0,0.66306]
[1745324212462,0.07216,88745.0,88744.0,0.66006]
[1745324212658,0.07216,88745.0,88744.0,1.04346]
[1745324213163,0.07216,88745.0,88744.0,1.03646]
[1745324214559,0.07216,88745.0,88744.0,1.03746]
[1745324214858,0.07216,88745.0,88744.0,1.1501414]
[1745324215459,0.07208,88745.0,88744.0,1.1501414]
[1745324215662,0.07216,88745.0,88744.0,1.1511414]
[1745324215961,8e-05,88745.0,88744.0,1.1511414]
[1745324216157,8e-05,88745.0,88744.0,1.3431414]
[1745324216360,0.00010801,88753.0,88752.0,0.1126712]
[1745324216550,0.00010801,88753.0,88752.0,1.1265312]
[1745324216855,0.02753774,88759.0,88752.0,1.01386]
[1745324217057,0.02753774,88759.0,88754.0,0.3608]
[1745324217363,0.02753774,88759.0,88755.0,0.3689]
[1745324217553,0.02753774,88759.0,88755.0,1.21916]
[1745324217749,0.02753774,88759.0,88756.0,0.65306]
[1745324218259,0.02753774,88759.0,88755.0,0.5661]
[1745324218260,0.02753774,88759.0,88757.0,1.03836]
[1745324218469,0.02753774,88759.0,88757.0,0.3853]
[1745324218658,0.02761774,88759.0,88758.0,0.65306]
[1745324219063,0.02761774,88759.0,88758.0,1.03836]
[1745324220366,0.02753774,88759.0,88758.0,1.1510236]
[1745324220563,0.02761774,88759.0,88758.0,1.03836]
[1745324220751,0.02761774,88759.0,88758.0,1.03136]
[1745324221064,0.02761774,88759.0,88758.0,1.1440236]
[1745324221362,0.02753774,88759.0,88758.0,1.3360236]